Cogmind - Beta 14 --- EXPLORER MODE // 2024.12.01 @ 02:04:07 Player: AikonCWD Result: Destroyed by B-99 Colossus with Linear Accelerator Performance ------------- Evolutions (9) 4500 Regions Visited (15) 3000 Robots Destroyed (168) 840 Value Destroyed (6809) 6809 Prototype IDs (7) 140 Alien Tech Used (0) 0 Bonus (1256) 1256 TOTAL SCORE: 16545 Bonus ------- High Alert Combat Kills 816 Entered DSFs 500 Friendly Fire -60 Cogmind --------- Core Integrity 0/1600 Matter 300/300 Energy 100/100 System Corruption 23% Temperature Cool (0) Movement Core (50) Location -1/Access Parts ------- > --- POWER (2) -------- (None) > --- PROPULSION (6) --- (None) > --- UTILITY (15) ----- (None) > --- WEAPON (3) ------- (None) > --- INVENTORY (5) ---- Nuclear Pulse Thruster Peak State ------------ > --- POWER ------------ Heavy Deuterium Engine Light Fission Core > --- PROPULSION ------- Armored Medium Treads Advanced Medium Treads Advanced Medium Treads Improved Heavy Treads Biometal Medium Treads > --- UTILITY ---------- Power Amplifier Power Amplifier Large Storage Unit Improved Sensor Array Improved Signal Interpreter Hardened Heavy Armor Plating Improved Thermal Shield Improved Hacking Suite > --- WEAPON ----------- Heavy Laser Gatling Laser Long-range Missile Launcher > --- INVENTORY -------- Fusion Compressor Neutrino Core Heavy Treads Heavy Treads Antimissile System Heavy Laser Heavy Laser Heavy Laser Heavy Laser Improved EM Pulse Cannon Phase Cannon Heavy Plasma Cannon Hypervelocity Gauss Cannon [Rating: 108] Favorites ----------- Power Heavy Deuterium Engine Engine Heavy Deuterium Engine Power Core Light Fission Core Propulsion Advanced Treads Treads Advanced Treads Flight Unit Field Propulsion Array Utility Large Storage Unit Device Improved Sensor Array Storage Large Storage Unit Processor Improved Signal Interpreter Hackware Improved Hacking Suite Protection Improved Light Armor Plating Weapon Assault Rifle Energy Gun Gatling Laser Energy Cannon Heavy Plasma Cannon Ballistic Gun Assault Rifle Ballistic Cannon Hypervelocity Gauss Cannon Launcher Long-range Missile Launcher Build | -11 -10 -9 -8 -7 -7 -6 -5 -4 -4 -4 -4 -3 -3 -2 -1 ------- Run | Yrd Mat Mat Mat Fac Sto Fac Fac Fac Was Fac DSF Res Tes Res Acc Slots Evolved 19 | . 1 2 2 2 . 2 2 2 . . . 2 . 2 2 Power 1 | . . . . . . . 1 . . . . . . . . Propulsion 4 | . . 1 1 . . 2 . . . . . . . . . Utility 13 | . 1 1 1 2 . . 1 1 . . . 2 . 2 2 Weapon 1 | . . . . . . . . 1 . . . . . . . Parts Attached 105 | 7 3 2 5 4 17 26 23 10 2 . . . . . 6 Power 9 | 1 1 . . 1 2 2 2 . . . . . . . . Engine 8 | 1 1 . . 1 2 2 1 . . . . . . . . Core 1 | . . . . . . . 1 . . . . . . . . Reactor . | . . . . . . . . . . . . . . . . Propulsion 38 | 2 . 1 2 . 6 12 7 6 2 . . . . . . Treads 35 | 2 . 1 2 . 6 12 7 5 . . . . . . . Leg . | . . . . . . . . . . . . . . . . Wheel . | . . . . . . . . . . . . . . . . Hover . | . . . . . . . . . . . . . . . . Flight 3 | . . . . . . . . 1 2 . . . . . . Utility 23 | 2 2 1 1 2 5 3 6 1 . . . . . . . Device 12 | 1 . . 1 2 2 2 4 . . . . . . . . Storage 2 | 1 1 . . . . . . . . . . . . . . Processor 3 | . 1 . . . 1 1 . . . . . . . . . Hackware 1 | . . . . . . . 1 . . . . . . . . Protection 5 | . . 1 . . 2 . 1 1 . . . . . . . Artifact . | . . . . . . . . . . . . . . . . Weapon 35 | 2 . . 2 1 4 9 8 3 . . . . . . 6 Energy Gun 10 | . . . . . 1 2 5 2 . . . . . . . Energy Cannon 3 | . . . . . . 2 1 . . . . . . . . Ballistic Gun 7 | 2 . . 2 1 1 1 . . . . . . . . . Ballistic Cannon 3 | . . . . . . 2 . 1 . . . . . . . Launcher 12 | . . . . . 2 2 2 . . . . . . . 6 Special Weapon . | . . . . . . . . . . . . . . . . Impact Weapon . | . . . . . . . . . . . . . . . . Slashing Weapon . | . . . . . . . . . . . . . . . . Piercing Weapon . | . . . . . . . . . . . . . . . . Special Melee Weapon . | . . . . . . . . . . . . . . . . Unidentified Prototypes 2 | . . . 1 . 1 . . . . . . . . . . Parts Lost 47 | . . . . . 6 15 9 10 . . . 2 1 . 4 Power 5 | . . . . . . 2 1 2 . . . . . . . Propulsion 19 | . . . . . 1 9 4 2 . . . 2 1 . . Utility 14 | . . . . . 5 3 2 4 . . . . . . . Weapon 9 | . . . . . . 1 2 2 . . . . . . 4 Highest Loss Streak 11 | . . . . . 3 11 7 3 . . . 2 1 . 3 To Critical Strikes 2 | . . . . . . . 1 1 . . . . . . . Average Slot Usage (%) 79 | . 100 100 100 100 84 92 72 73 12 15 15 10 3 . . Engine 6 | . 12 10 8 7 6 5 8 2 . . . . . . . Treads 23 | . 25 30 33 28 27 32 19 21 . . . . . . . Device 13 | . 12 10 16 28 17 15 14 15 . . . . . . . Storage 6 | . 12 10 8 7 7 6 5 4 . . . . . . . Processor 7 | . 12 10 8 7 5 11 5 4 . . . . . . . Hackware 1 | . . . . . . . 4 4 . . . . . . . Protection 4 | . . 10 8 7 5 6 2 3 . . . . . . . Energy Gun 3 | . . . . . 2 4 8 8 . . . . . . . Ballistic Gun 8 | . 25 20 16 14 10 1 . . . . . . . . . Peak Build Rating 108 | 7 11 14 23 29 45 63 86 108 45 42 43 43 15 1 20 Average Rating 41 | 5 9 13 22 27 33 56 65 88 39 42 42 34 13 1 2 On Entrance 24 | . 7 11 14 23 29 45 26 80 17 42 42 43 15 1 1 Naked Turns 523 | . . . . . . . . 5 . . . . 9 85 424 Heaviest Build 79 | 20 32 35 40 45 47 56 56 79 . . . . . . 11 Greatest Support 197 | 40 40 60 82 82 94 146 177 197 45 45 45 45 15 3 3 Greatest Overweight (x) 3 | . . . . . . 2 1 1 . . . . . . 3 Average Overweight (x) . | . . . . . . . . . . . . . . . . Largest Inventory Capacity 15 | 10 15 15 15 15 15 15 15 15 5 5 5 5 5 5 5 Average Capacity 13 | 6 12 15 15 15 15 15 15 14 5 5 5 5 5 5 5 Most Carried 15 | 3 13 14 13 11 15 15 15 15 5 1 2 3 3 3 5 Average Carried 11 | 1 8 13 10 10 12 13 11 14 4 1 1 2 3 3 3 Final Capacity 15 | 10 15 15 15 15 15 15 15 5 5 5 5 5 5 5 5 Final Carried 14 | 3 13 14 11 11 14 6 9 5 1 1 2 3 3 3 1 Class Distribution -------------------- 83% | Hacker-Mutant 10% | Scavenger-Mutant 5% | Hacker-Tank Dominant Class ---------------- Hacker-Mutant | -10/Materials Hacker-Mutant | -9/Materials Hacker-Mutant | -8/Materials Hacker-Mutant | -7/Factory Hacker-Mutant | -7/Storage Scavenger-Mutant | -6/Factory Hacker-Mutant | -5/Factory Hacker-Mutant | -4/Factory Hacker-Mutant | -4/Waste Hacker-Mutant | -4/Factory Hacker-Mutant | -4/DSF Hacker-Mutant | -3/Research Hacker-Mutant | -3/Testing Hacker-Mutant | -2/Research Hacker-Mutant | -1/Access Resources | -11 -10 -9 -8 -7 -7 -6 -5 -4 -4 -4 -4 -3 -3 -2 -1 ----------- Run | Yrd Mat Mat Mat Fac Sto Fac Fac Fac Was Fac DSF Res Tes Res Acc Matter Collected 1107 | 314 167 276 55 35 497 763 289 96 . . . . . . -1385 Remotely . | . . . . . . . . . . . . . . . . Salvage Created 5530 | 133 315 616 . 64 883 1382 527 1244 . . . . . . 366 Parts 291 | 12 23 38 . 1 44 63 25 60 . . . . . . 25 Haulers Intercepted 3 | . 1 1 . . 1 . . . . . . . . . . Recyclers Shooed 8 | 1 . . . . . 5 . 1 . . . . . . 1 Parts Field Recycled . | . . . . . . . . . . . . . . . . Retrieved Matter . | . . . . . . . . . . . . . . . . Parts Self-Destructed . | . . . . . . . . . . . . . . . . Prevented . | . . . . . . . . . . . . . . . . Kills | -11 -10 -9 -8 -7 -7 -6 -5 -4 -4 -4 -4 -3 -3 -2 -1 ------- Run | Yrd Mat Mat Mat Fac Sto Fac Fac Fac Was Fac DSF Res Tes Res Acc Combat Hostiles Destroyed 126 | . 9 11 . 1 18 29 14 32 . . . . . . 12 Guns 66 | . 9 11 . 1 12 10 10 13 . . . . . . . Cannons 10 | . . . . . . 10 . . . . . . . . . AOE 46 | . . . . . 6 7 3 18 . . . . . . 12 Classes Destroyed 14 | 2 4 2 . . 2 4 . . . . . . . . . Worker 7 | . . . . . . 2 1 3 . . . . . . 1 Builder 12 | . . . . . . 7 . 5 . . . . . . . Tunneler 5 | 4 . . . . . . . 1 . . . . . . . Hauler 3 | . 1 1 . . 1 . . . . . . . . . . Recycler 4 | 1 . . . . 1 2 . . . . . . . . . Operator 3 | . . 2 . . . . 1 . . . . . . . . Watcher 8 | . 1 3 . . . 3 . 1 . . . . . . . Swarmer 31 | . 4 . . . 2 3 6 6 . . . . . . 10 Cutter 3 | . . . . . . 3 . . . . . . . . . Grunt 47 | . 5 9 . . 6 15 . 12 . . . . . . . Sentry 12 | . . 2 . 1 5 2 2 . . . . . . . . Hunter 15 | . . . . . 3 2 2 8 . . . . . . . Programmer 15 | . . . . . 1 2 4 6 . . . . . . 2 Heavy 2 | . . . . . . 2 . . . . . . . . . Best Kill Streak 12 | 2 3 3 . 1 7 12 3 12 . . . . . . 4 Combat Bots Only 9 | . 3 2 . 1 6 7 3 9 . . . . . . 4 Max Kills in Single Turn 6 | 1 1 1 . 1 3 6 2 2 . . . . . . 4 Gunslinging 1 | . . . . . . . 1 . . . . . . . . Exploded 4 | . . . . . 2 3 1 2 . . . . . . 4 Melee . | . . . . . . . . . . . . . . . . Uniques/NPCs Destroyed 1 | . . . . . 1 . . . . . . . . . . 01-MTF (-7/Storage) Combat | -11 -10 -9 -8 -7 -7 -6 -5 -4 -4 -4 -4 -3 -3 -2 -1 -------- Run | Yrd Mat Mat Mat Fac Sto Fac Fac Fac Was Fac DSF Res Tes Res Acc Hostile Shots Fired 2372 | . 23 43 1 27 306 278 216 344 1 . 11 47 85 112 878 Missed 800 | . 7 13 . 8 99 85 71 103 . . 4 22 50 49 289 Damage Taken 18840 | . 99 247 3 78 1704 2428 1782 2476 21 . 199 357 219 927 8300 Core 10297 | . 20 46 . . 342 281 184 166 . . 59 171 206 927 7895 Absorbed by Shields . | . . . . . . . . . . . . . . . . Redirected to Shielding 72 | . . . . . . . 72 . . . . . . . . Ignored by Resistances 11596 | . 65 157 3 58 923 1441 1096 2027 12 . 113 213 137 528 4823 Regen/Repaired (Parts) 58 | . . . . . 58 . . . . . . . . . . Core Remaining (%) 84 | 100 92 88 100 . 51 66 81 . . . 100 . 88 79 . Volleys Fired 332 | 9 22 44 1 2 49 96 41 61 . . . . . . 7 Largest 3 | 2 2 2 2 2 2 2 2 3 . . . . . . 3 Hottest 218 | 40 40 40 46 46 108 149 160 218 . . . . . . 144 Shots Fired 664 | 18 44 89 2 4 85 182 73 157 . . . . . . 10 Gun 508 | 18 44 89 2 4 78 91 65 117 . . . . . . . Cannon 93 | . . . . . . 85 . 8 . . . . . . . Launcher 63 | . . . . . 7 6 8 32 . . . . . . 10 Special . | . . . . . . . . . . . . . . . . Kinetic 358 | 18 44 89 2 4 71 122 . 8 . . . . . . . Thermal 240 | . . . . . 7 51 65 117 . . . . . . . Explosive 58 | . . . . . 7 6 8 32 . . . . . . 5 Electromagnetic 8 | . . . . . . 3 . . . . . . . . 5 Robot Hit Streak 41 | 8 20 40 22 25 41 29 20 30 . . . . . . 4 Robot Miss Streak 6 | 1 1 1 . . 2 2 1 6 . . . . . . 1 Penetration Max 1 | . . . . . 1 . . . . . . . . . . Secondary Targets 6 | . . 1 . . 1 . 1 3 . . . . . . . Max Gunslinging Chain 1 | . . 1 . . 1 . 1 1 . . . . . . . Shots Hit Robots 556 | 13 38 79 2 3 75 152 63 125 . . . . . . 6 Core Hits 375 | 6 20 30 . 3 54 87 30 114 . . . . . 1 30 Critical Kills 4 | . . . . . . 4 . . . . . . . . . Critical Parts Destroyed 10 | . . . . . . 8 . 2 . . . . . . . Critical Strikes 20 | . . . . . . 13 1 6 . . . . . . . Burn 5 | . . . . . . . 1 4 . . . . . . . Meltdown 2 | . . . . . . 2 . . . . . . . . . Destroy 12 | . . . . . . 10 . 2 . . . . . . . Blast 1 | . . . . . . 1 . . . . . . . . . Melee Attacks . | . . . . . . . . . . . . . . . . Impact . | . . . . . . . . . . . . . . . . Slashing . | . . . . . . . . . . . . . . . . Piercing . | . . . . . . . . . . . . . . . . Sneak Attacks . | . . . . . . . . . . . . . . . . Combat Hostiles . | . . . . . . . . . . . . . . . . Follow-up Attacks . | . . . . . . . . . . . . . . . . Damage Inflicted 18570 | 170 516 964 27 52 2046 5154 1897 5806 . . . . . 48 1890 Guns 8371 | 170 482 944 27 47 1193 1945 1320 2243 . . . . . . . Cannons 1856 | . . . . . . 1795 . 61 . . . . . . . Explosions 7927 | . . . . . 850 1325 576 3423 . . . . . . 1753 Melee . | . . . . . . . . . . . . . . . . Ramming 416 | . 34 20 . 5 3 89 1 79 . . . . . 48 137 Kinetic 5077 | 170 482 944 27 47 1127 2219 . 61 . . . . . . . Thermal 5284 | . . . . . 66 1446 1529 2243 . . . . . . . Explosive 7322 | . . . . . 850 1325 367 3423 . . . . . . 1357 Electromagnetic 471 | . . . . . . 75 . . . . . . . . 396 Impact . | . . . . . . . . . . . . . . . . Slashing . | . . . . . . . . . . . . . . . . Piercing . | . . . . . . . . . . . . . . . . Highest Corruption 23 | . . 2 . . 6 2 5 5 5 5 5 . . 1 23 Average Corruption 3 | . . 1 . . 4 1 3 2 5 5 5 . . 1 9 Corruption Purged . | . . . . . . . . . . . . . . . . Corruption Blocked . | . . . . . . . . . . . . . . . . Effects 59 | . . 1 . . 14 5 25 4 3 . . . . . 7 Message Errors 17 | . . . . . 4 1 6 1 1 . . . . . 4 Matter Fused 13 | . . . . . 1 . 9 1 1 . . . . . 1 Heat Flow Errors 6 | . . . . . 1 . 5 . . . . . . . . Energy Discharges 2 | . . . . . 1 . . . 1 . . . . . . Data Loss (minor) 6 | . . . . . 3 1 1 1 . . . . . . . Data Loss (major) 6 | . . . . . 1 1 1 1 . . . . . . 2 Misfires 6 | . . 1 . . 2 . 3 . . . . . . . . Weapon Failures 3 | . . . . . 1 2 . . . . . . . . . Overload Shots . | . . . . . . . . . . . . . . . . Overflow Damage 349 | . . 4 . . 15 124 . 120 . . . . . . 86 Projectiles 63 | . . . . . . 63 . . . . . . . . . Explosions 282 | . . . . . 15 61 . 120 . . . . . . 86 Melee 4 | . . 4 . . . . . . . . . . . . . Knockbacks 18 | . . . . . . 16 . . . . . . . . 2 Impact 3 | . . . . . . 1 . . . . . . . . 2 Kinetic 12 | . . . . . . 12 . . . . . . . . . Secondary 3 | . . . . . . 3 . . . . . . . . . Self-Inflicted Damage 606 | . . . . . 61 112 . 152 . . . . . 24 257 Shots 17 | . . . . . 2 3 . 6 . . . . . . 6 Rammed 75 | . 5 3 . 1 3 11 3 5 . . . . . 7 37 Targets Rammed 81 | . 5 3 . 1 3 14 3 8 . . . . . 7 37 Kicked . | . . . . . . . . . . . . . . . . Crushed 6 | . . . . . . 3 . 3 . . . . . . . Highest Temperature 517 | . 8 11 . . 140 168 517 138 . . . . . . . Average Temperature 68 | . 4 4 . . 37 34 119 45 . . . . . . . Received Heat Transfer 2647 | . 75 207 . 36 630 424 207 563 . . . 145 . 126 234 Effects 11 | . . . . . . . 11 . . . . . . . . Shutdowns 1 | . . . . . . . 1 . . . . . . . . Energy Bleed 1 | . . . . . . . 1 . . . . . . . . Interference 2 | . . . . . . . 2 . . . . . . . . Matter Decay 1 | . . . . . . . 1 . . . . . . . . Short Circuit 1 | . . . . . . . 1 . . . . . . . . Damage (minor) 1 | . . . . . . . 1 . . . . . . . . Damage (major) 4 | . . . . . . . 4 . . . . . . . . Siege Activations . | . . . . . . . . . . . . . . . . Robots Corrupted 1 | . . 1 . . . . . . . . . . . . . Combat Hostiles . | . . . . . . . . . . . . . . . . Parts Fried 3 | . . 2 . . . . . . . . . . . . 1 Impact Corruptions 1 | . . 1 . . . . . . . . . . . . . Robots Melted 4 | . . . . . . 2 1 1 . . . . . . . Combat Hostiles 4 | . . . . . . 2 1 1 . . . . . . . Parts Melted 29 | . . . . . . 9 10 10 . . . . . . . Heat Transferred 10465 | . . . . . 325 2775 2590 4775 . . . . . . . Parts Sabotaged . | . . . . . . . . . . . . . . . . Parts Stolen . | . . . . . . . . . . . . . . . . Parts Stripped . | . . . . . . . . . . . . . . . . Power Chain Reactions . | . . . . . . . . . . . . . . . . Alert | -11 -10 -9 -8 -7 -7 -6 -5 -4 -4 -4 -4 -3 -3 -2 -1 ------- Run | Yrd Mat Mat Mat Fac Sto Fac Fac Fac Was Fac DSF Res Tes Res Acc Peak Influence 1119 | 25 134 257 46 60 245 518 272 1119 263 141 105 144 135 202 713 Initial 233 | . 12 24 10 15 19 28 186 21 233 141 75 44 60 52 91 Average 156 | 13 65 73 18 51 91 101 158 454 259 141 85 84 112 106 431 Maximum Alert Level 4 | . . 1 . . 1 2 1 4 1 . . . . 1 3 Low Security (%) 76 | 100 100 93 100 100 84 84 58 50 . 100 100 100 100 90 21 Level 1 14 | . . 6 . . 15 13 41 1 100 . . . . 9 21 Level 2 3 | . . . . . . 2 . 7 . . . . . . 50 Level 3 5 | . . . . . . . . 38 . . . . . . 6 Level 4 . | . . . . . . . . 2 . . . . . . . Level 5 . | . . . . . . . . . . . . . . . . High Security . | . . . . . . . . . . . . . . . . Max Security . | . . . . . . . . . . . . . . . . Squads Dispatched 41 | . 1 3 . . 5 12 4 10 . . 1 . . 1 4 Investigation 14 | . 1 . . . 2 3 2 2 . . . . . . 4 Extermination 10 | . . . . . 2 2 2 4 . . . . . . . Reinforcement 16 | . . 3 . . 1 7 . 3 . . 1 . . 1 . Assault 1 | . . . . . . . . 1 . . . . . . . Garrison . | . . . . . . . . . . . . . . . . Intercept . | . . . . . . . . . . . . . . . . Searches Triggered 1 | . . . . . . . . . . . . . . . 1 Construction Impeded 4 | . . . . . . 2 . 2 . . . . . . . Haulers Reinforced 2 | . . . . . 1 . . 1 . . . . . . . Active Scanning Responses . | . . . . . . . . . . . . . . . . Cargo Convoy Interrupts 1 | . . . . . . 1 . . . . . . . . . Stealth | -11 -10 -9 -8 -7 -7 -6 -5 -4 -4 -4 -4 -3 -3 -2 -1 --------- Run | Yrd Mat Mat Mat Fac Sto Fac Fac Fac Was Fac DSF Res Tes Res Acc Distress Signals 22 | . . 1 1 . 3 6 2 3 . . . . 1 2 3 Communications Jammed . | . . . . . . . . . . . . . . . . Distress Signals . | . . . . . . . . . . . . . . . . Times Spotted 306 | . 13 20 4 1 33 44 30 45 6 . 5 10 10 24 61 Peak Tracking Total 20 | . 3 4 4 1 6 8 7 8 6 . 4 7 10 20 20 Tactical Retreats 30 | . . . . . 3 5 3 2 . . 1 3 1 1 11 Traps | -11 -10 -9 -8 -7 -7 -6 -5 -4 -4 -4 -4 -3 -3 -2 -1 ------- Run | Yrd Mat Mat Mat Fac Sto Fac Fac Fac Was Fac DSF Res Tes Res Acc Traps Triggered 12 | . . 4 . . 2 1 1 1 . . . . . 1 2 Indirectly . | . . . . . . . . . . . . . . . . Trap Hack Attempts . | . . . . . . . . . . . . . . . . Triggered . | . . . . . . . . . . . . . . . . Disarmed . | . . . . . . . . . . . . . . . . Reprogrammed . | . . . . . . . . . . . . . . . . Reused . | . . . . . . . . . . . . . . . . Traps Extracted . | . . . . . . . . . . . . . . . . Installed . | . . . . . . . . . . . . . . . . Triggered 2 | . . . . . 1 1 . . . . . . . . . Machines | -11 -10 -9 -8 -7 -7 -6 -5 -4 -4 -4 -4 -3 -3 -2 -1 ---------- Run | Yrd Mat Mat Mat Fac Sto Fac Fac Fac Was Fac DSF Res Tes Res Acc Machines Disabled 23 | . . . . . 2 2 7 11 . . . . . . 1 Max in Single Turn 7 | . . . . . 2 1 7 3 . . . . . . 1 Machines Repaired . | . . . . . . . . . . . . . . . . Machines Dismantled . | . . . . . . . . . . . . . . . . Machines Sabotaged . | . . . . . . . . . . . . . . . . Overloaded Fab Kills . | . . . . . . . . . . . . . . . . Hacking | -11 -10 -9 -8 -7 -7 -6 -5 -4 -4 -4 -4 -3 -3 -2 -1 --------- Run | Yrd Mat Mat Mat Fac Sto Fac Fac Fac Was Fac DSF Res Tes Res Acc Machines Accessed 36 | . 8 3 1 1 7 4 3 4 . 1 . . . . 4 Terminals 27 | . 6 3 1 1 4 2 3 2 . 1 . . . . 4 Fabricators 1 | . . . . . . 1 . . . . . . . . . Repair Stations 2 | . 1 . . . 1 . . . . . . . . . . Recycling Units 6 | . 1 . . . 2 1 . 2 . . . . . . . Scanalyzers . | . . . . . . . . . . . . . . . . Garrison Access . | . . . . . . . . . . . . . . . . Total Hacks 91 | . 23 10 4 1 15 11 11 5 . 1 . . . . 10 Successful 53 | . 14 8 4 1 6 5 8 4 . 1 . . . . 2 Failed 38 | . 9 2 . . 9 6 3 1 . . . . . . 8 Catastrophic 8 | . 1 . . . 2 2 . . . . . . . . 3 Database Lockouts . | . . . . . . . . . . . . . . . . Manual 32 | . 2 5 2 . 3 4 4 4 . . . . . . 8 Terminals 70 | . 18 10 4 1 7 5 11 3 . 1 . . . . 10 Fabricators 3 | . . . . . . 3 . . . . . . . . . Repair Stations 4 | . 2 . . . 2 . . . . . . . . . . Recycling Units 14 | . 3 . . . 6 3 . 2 . . . . . . . Scanalyzers . | . . . . . . . . . . . . . . . . Garrison Access . | . . . . . . . . . . . . . . . . Terminal Hacks 43 | . 12 8 4 1 4 2 8 1 . 1 . . . . 2 Record 8 | . . 3 . . . 1 3 . . . . . . . 1 Robot Analysis 3 | . . . 1 . . . 2 . . . . . . . . Prototype ID Bank 3 | . 2 . 1 . . . . . . . . . . . . Open Door 3 | . . . . . 3 . . . . . . . . . . Open DSF 2 | . . . . 1 . . . . . 1 . . . . . Level Access Points 4 | . 1 . 1 . . . 1 . . . . . . . 1 Branch Access Points 3 | . . 1 1 . . . . 1 . . . . . . . Locate Traps 6 | . 3 1 . . . 1 1 . . . . . . . . Dispatch Records 1 | . 1 . . . . . . . . . . . . . . Security Status 1 | . 1 . . . . . . . . . . . . . . Recall Investigation 3 | . 1 2 . . . . . . . . . . . . . Recall Extermination 1 | . . . . . 1 . . . . . . . . . . Recall Assault 1 | . 1 . . . . . . . . . . . . . . Hauler Manifests 2 | . 1 1 . . . . . . . . . . . . . Zone Layout 2 | . 1 . . . . . 1 . . . . . . . . Fabricator Hacks . | . . . . . . . . . . . . . . . . Repair Station Hacks 2 | . . . . . 2 . . . . . . . . . . Scan Component 1 | . . . . . 1 . . . . . . . . . . Repair 1 | . . . . . 1 . . . . . . . . . . Recycling Unit Hacks 5 | . 2 . . . . 2 . 1 . . . . . . . Report Inventory 2 | . 1 . . . . 1 . . . . . . . . . Retrieve Components 3 | . 1 . . . . 1 . 1 . . . . . . . Scanalyzer . | . . . . . . . . . . . . . . . . Garrison Access Hacks . | . . . . . . . . . . . . . . . . Unauthorized Hacks 3 | . . . . . . 1 . 2 . . . . . . . Terminals 1 | . . . . . . . . 1 . . . . . . . Botnet 1 | . . . . . . . . 1 . . . . . . . Fabricators . | . . . . . . . . . . . . . . . . Repair Stations . | . . . . . . . . . . . . . . . . Recycling Units 2 | . . . . . . 1 . 1 . . . . . . . Tunnel 2 | . . . . . . 1 . 1 . . . . . . . Scanalyzers . | . . . . . . . . . . . . . . . . Garrison Access . | . . . . . . . . . . . . . . . . Data Cores Recovered . | . . . . . . . . . . . . . . . . Used . | . . . . . . . . . . . . . . . . Hacking Detections 23 | . 4 2 1 . 4 4 3 1 . 1 . . . . 3 Full Trace Events 10 | . 1 . . . 2 2 1 1 . . . . . . 3 Feedback Events 1 | . . . . . . . . . . . . . . . 1 Corruption 1 | . . . . . . . . . . . . . . . 1 Feedback Blocked . | . . . . . . . . . . . . . . . . Robot Schematics Acquired . | . . . . . . . . . . . . . . . . Robots Built . | . . . . . . . . . . . . . . . . Authchips . | . . . . . . . . . . . . . . . . Time . | . . . . . . . . . . . . . . . . Total Robot Build Rating . | . . . . . . . . . . . . . . . . Part Schematics Acquired . | . . . . . . . . . . . . . . . . Parts Built . | . . . . . . . . . . . . . . . . Authchips . | . . . . . . . . . . . . . . . . Time . | . . . . . . . . . . . . . . . . Total Part Build Rating . | . . . . . . . . . . . . . . . . Parts Repaired 1 | . . . . . 1 . . . . . . . . . . Time 70 | . . . . . 70 . . . . . . . . . . Parts Recycled . | . . . . . . . . . . . . . . . . Recycled Matter . | . . . . . . . . . . . . . . . . Retrieved Matter . | . . . . . . . . . . . . . . . . Retrieved Components 7 | . 3 . . . . 1 . 3 . . . . . . . Parts Scanalyzed . | . . . . . . . . . . . . . . . . Part Schematics Acquired . | . . . . . . . . . . . . . . . . Parts Damaged . | . . . . . . . . . . . . . . . . Bothacking | -11 -10 -9 -8 -7 -7 -6 -5 -4 -4 -4 -4 -3 -3 -2 -1 ------------ Run | Yrd Mat Mat Mat Fac Sto Fac Fac Fac Was Fac DSF Res Tes Res Acc Used RIF Installer . | . . . . . . . . . . . . . . . . Robots Hacked . | . . . . . . . . . . . . . . . . Non-combat . | . . . . . . . . . . . . . . . . Combat . | . . . . . . . . . . . . . . . . Robot Hacks Applied . | . . . . . . . . . . . . . . . . Relay Couplers Released . | . . . . . . . . . . . . . . . . Fabnet Peak Effective % . | . . . . . . . . . . . . . . . . Robots Rewired . | . . . . . . . . . . . . . . . . Allies Hacked . | . . . . . . . . . . . . . . . . Hacks Repelled . | . . . . . . . . . . . . . . . . Allies | -11 -10 -9 -8 -7 -7 -6 -5 -4 -4 -4 -4 -3 -3 -2 -1 -------- Run | Yrd Mat Mat Mat Fac Sto Fac Fac Fac Was Fac DSF Res Tes Res Acc Total Allies . | . . . . . . . . . . . . . . . . Largest Group . | . . . . . . . . . . . . . . . . Highest-Rated Group . | . . . . . . . . . . . . . . . . Highest-Rated Ally . | . . . . . . . . . . . . . . . . Total Orders . | . . . . . . . . . . . . . . . . Ally Attacks . | . . . . . . . . . . . . . . . . Total Damage . | . . . . . . . . . . . . . . . . Kills . | . . . . . . . . . . . . . . . . Allies Corrupted . | . . . . . . . . . . . . . . . . Allies Melted . | . . . . . . . . . . . . . . . . Intel | -11 -10 -9 -8 -7 -7 -6 -5 -4 -4 -4 -4 -3 -3 -2 -1 ------- Run | Yrd Mat Mat Mat Fac Sto Fac Fac Fac Was Fac DSF Res Tes Res Acc Robot Analysis Total 3 | . . . 1 . . . 2 . . . . . . . . Derelict Logs Recovered . | . . . . . . . . . . . . . . . . Drone Launches . | . . . . . . . . . . . . . . . . Drone Recoveries . | . . . . . . . . . . . . . . . . Exploration | -11 -10 -9 -8 -7 -7 -6 -5 -4 -4 -4 -4 -3 -3 -2 -1 ------------- Run | Yrd Mat Mat Mat Fac Sto Fac Fac Fac Was Fac DSF Res Tes Res Acc Turns Passed 8815 | 144 1097 841 203 254 1492 1538 1345 1060 73 2 37 119 77 85 448 Spaces Moved 5521 | 66 622 419 122 147 637 729 673 444 194 4 104 332 187 156 685 Core 870 | 1 . . . . . . . 11 . . . . 17 156 685 Treads 3804 | 65 622 419 122 147 637 729 673 390 . . . . . . . Legs . | . . . . . . . . . . . . . . . . Wheels . | . . . . . . . . . . . . . . . . Hover . | . . . . . . . . . . . . . . . . Flight 847 | . . . . . . . . 43 194 4 104 332 170 . . Fastest Speed 34 | 50 160 160 156 156 145 147 160 40 34 34 34 34 40 50 50 Average Speed 122 | 158 160 160 157 156 149 152 174 143 34 34 34 35 40 50 50 Slowest Speed 320 | 160 160 160 160 156 156 320 245 240 40 34 34 40 50 50 200 Overloaded Moves . | . . . . . . . . . . . . . . . . Propulsion Burnouts . | . . . . . . . . . . . . . . . . Robots Hopped 6 | . . . . . . . . 1 . . . 3 2 . . Cave-ins Triggered 1 | . . . . . 1 . . . . . . . . . . Exploration Rate (%) 32 | 4 81 41 14 2 65 17 19 13 82 . 86 9 26 8 27 Regions Visited 15 Branch Regions 2 Pre-discovered Areas 2 | . . . . . . 1 . 1 . . . . . . . Known Exits Taken 12 | 1 1 1 1 1 1 1 1 . . 1 . 1 1 1 . Unknown Exits Taken . | . . . . . . . . . . . . . . . . Scrap Searched . | . . . . . . . . . . . . . . . . Spaces Dug . | . . . . . . . . . . . . . . . . Terrain Destroyed 472 | . . . . . 91 78 65 216 . . . . . . 22 Melee . | . . . . . . . . . . . . . . . . Projectile 4 | . . . . . . 3 . 1 . . . . . . . AOE 468 | . . . . . 91 75 65 215 . . . . . . 22 Terrain Rammed . | . . . . . . . . . . . . . . . . Walls Destroyed . | . . . . . . . . . . . . . . . . Machines Disabled . | . . . . . . . . . . . . . . . . Actions | -11 -10 -9 -8 -7 -7 -6 -5 -4 -4 -4 -4 -3 -3 -2 -1 --------- Run | Yrd Mat Mat Mat Fac Sto Fac Fac Fac Was Fac DSF Res Tes Res Acc Total 6865 | 84 678 500 133 167 1093 964 764 723 199 3 104 329 184 162 778 Wait 735 | . 10 28 . 11 361 85 15 186 . . . . . . 39 Move 5495 | 65 621 418 121 146 636 728 672 442 193 3 103 325 182 155 685 Hop 6 | . . . . . . . . 1 . . . 3 2 . . Pick Up 59 | 3 13 4 1 2 12 6 7 6 1 . 1 1 . . 2 Fast Attach 36 | 7 . . . . 6 5 10 6 2 . . . . . . Attach 38 | . 1 2 4 2 1 13 6 3 . . . . . . 6 Detach 11 | . . . 2 . 1 1 1 4 . . . . . . 2 Swap 31 | . 2 . 1 2 10 8 7 1 . . . . . . . Drop 41 | . 4 1 3 1 14 8 2 5 3 . . . . . . Fire 332 | 9 22 44 1 2 49 96 41 61 . . . . . . 7 Melee . | . . . . . . . . . . . . . . . . Ram 44 | . . . . . . . . . . . . . . 7 37 Kick . | . . . . . . . . . . . . . . . . Crush 37 | . 5 3 . 1 3 14 3 8 . . . . . . . Escape Stasis . | . . . . . . . . . . . . . . . . Rewire . | . . . . . . . . . . . . . . . . Trap . | . . . . . . . . . . . . . . . . Miscellaneous . | . . . . . . . . . . . . . . . . Route ------- -11/Scrapyard -10/Materials (discovered 5 exits: *Mat x3 / *Min x2) -9/Materials (discovered 3 exits: *Mat / *Min x2) -8/Materials (discovered 3 exits: *Fac x3) -7/Factory -7/Storage -6/Factory (discovered 2 exits: *Fac x2) -5/Factory (discovered 4 exits: *Fac x4) -4/Factory (discovered 4 exits: Upp x2 / Ext x2) -4/Waste -4/Factory -4/DSF -3/Research -3/Testing -2/Research -1/Access (discovered 1 exit: Sur) History --------- Turn | Location | Event 10 | -11/Scrapyard | Identified exit to Materials 10 | -11/Scrapyard | Discovered exit to Materials (range 16) 145 | -11/Scrapyard | Entered Materials 145 | -10/Materials | Evolved 1 slot: Utility x1 308 | -10/Materials | Identified exit to Materials 310 | -10/Materials | Identified exit to Mines 310 | -10/Materials | Discovered exit to Mines (range 16) 318 | -10/Materials | Build established: Hacker-Mutant 811 | -10/Materials | Discovered exit to Mines (range 10) 1242 | -10/Materials | Entered another Materials area 1242 | -9/Materials | Evolved 2 slots: Propulsion x1, Utility x1 1793 | -9/Materials | Identified exit to Mines 2052 | -9/Materials | Identified exit to Materials 2052 | -9/Materials | Discovered exit to Materials (range 13) 2083 | -9/Materials | Entered another Materials area 2083 | -8/Materials | Evolved 2 slots: Propulsion x1, Utility x1 2119 | -8/Materials | Identified exit to Factory 2286 | -8/Materials | Entered Factory 2286 | -7/Factory | Evolved 2 slots: Utility x2 2472 | -7/Factory | Identified exit to Storage 2472 | -7/Factory | Discovered exit to Storage (range 8) 2540 | -7/Factory | Entered Storage 3387 | -7/Storage | Met 01-MTF 3532 | -7/Storage | Crushed by falling debris 3563 | -7/Storage | Lost 3 parts (1n2u) 3743 | -7/Storage | Repaired Hvy. Deuterium Engine 3900 | -7/Storage | Lost 3 allies 3907 | -7/Storage | Identified exit to Factory 3907 | -7/Storage | Discovered exit to Factory (range 8) 3992 | -7/Storage | Destroyed 01-MTF 4032 | -7/Storage | Entered Factory 4032 | -6/Factory | Evolved 2 slots: Propulsion x2 4305 | -6/Factory | Build established: Scavenger-Mutant 5006 | -6/Factory | Cargo convoy interrupted 5255 | -6/Factory | Build established: Hacker-Mutant 5294 | -6/Factory | Identified exit to Factory 5294 | -6/Factory | Discovered exit to Factory (range 12) 5554 | -6/Factory | Destroyed 7 combat bots 5557 | -6/Factory | Lost 11 parts (1p6n3u1w) 5567 | -6/Factory | Discovered exit to Factory (range 16) 5570 | -6/Factory | Entered another Factory area 5570 | -5/Factory | Evolved 2 slots: Power x1, Utility x1 5579 | -5/Factory | Identified exit to Factory 6442 | -5/Factory | Lost 7 parts (1p3n1u2w) 6845 | -5/Factory | Spotted B-75 Beast 6915 | -5/Factory | Entered another Factory area 6915 | -4/Factory | Evolved 2 slots: Utility x1, Weapon x1 7579 | -4/Factory | Destroyed 9 combat bots 7632 | -4/Factory | Build established: Hacker-Tank 7669 | -4/Factory | Identified exit to Upper Caves 7669 | -4/Factory | Identified exit to Extension 7690 | -4/Factory | First assault squad dispatched 7710 | -4/Factory | Lost 3 parts (1p1u1w) 7810 | -4/Factory | Lost 3 parts (2u1w) 7951 | -4/Factory | Released all parts (7) 7975 | -4/Factory | Sucked down chute 7975 | -4/Factory | Entered Waste 7979 | -4/Waste | Spotted C-40 Crusher 7979 | -4/Waste | Spotted C-40 Crusher 7984 | -4/Waste | Spotted C-40 Crusher 7991 | -4/Waste | Spotted C-40 Crusher 8033 | -4/Waste | Spotted C-40 Crusher 8034 | -4/Waste | Spotted C-40 Crusher 8043 | -4/Waste | Identified exit to Factory 8043 | -4/Waste | Discovered exit to Factory (range 14) 8048 | -4/Waste | Entered Factory 8049 | -4/Factory | Identified exit to DSF 8050 | -4/Factory | Entered DSF 8072 | -4/DSF | Additional patrols routed to DSF 8081 | -4/DSF | Identified exit to Research 8081 | -4/DSF | Discovered exit to Research (range 15) 8087 | -4/DSF | Entered Research 8087 | -3/Research | Evolved 2 slots: Utility x2 8200 | -3/Research | Identified exit to Testing 8200 | -3/Research | Discovered exit to Testing (range 15) 8206 | -3/Research | Entered Testing 8227 | -3/Testing | Spotted PL-P3A5XJ9NGF 8266 | -3/Testing | Build established: Hacker-Mutant 8273 | -3/Testing | Identified exit to Research 8273 | -3/Testing | Discovered exit to Research (range 15) 8283 | -3/Testing | Entered Research 8283 | -2/Research | Evolved 2 slots: Utility x2 8305 | -2/Research | Spotted B-90 Cyclops 8360 | -2/Research | Identified exit to Access 8360 | -2/Research | Discovered exit to Access (range 14) 8368 | -2/Research | Entered Access 8368 | -1/Access | Evolved 2 slots: Utility x2 8618 | -1/Access | Search patrols dispatched 8686 | -1/Access | System corruption reached 10% 8697 | -1/Access | Spotted B-99 Colossus 8709 | -1/Access | Identified exit to Surface 8759 | -1/Access | Spotted B-99 Colossus 8760 | -1/Access | Spotted B-99 Colossus 8805 | -1/Access | Core integrity fell below 50% 8813 | -1/Access | Core integrity fell below 20% 8816 | -1/Access | Destroyed by B-99 Colossus with Linear Accelerator Last Messages --------------- 08809_ Slug penetrates Sealed Heavy Doors. 08809_ Penetrated by Slug. 08809_ Slug penetrates Sealed Heavy Doors. 08809_ Penetrated by Slug. 08809_ Slug penetrates Sealed Heavy Doors. 08809_ Penetrated by Slug. 08810_ Slug penetrates Sealed Heavy Doors. 08810_ Penetrated by Slug. 08813_ Slug penetrates H-88 Terminator. 08813_ Penetrated by Slug. 08813_ Slug penetrates Sealed Heavy Doors. 08813_ Penetrated by Slug. 08813_ Slug penetrates Sealed Heavy Doors. 08813_ Penetrated by Slug. 08813_ Slug penetrates Sealed Heavy Doors. 08813_ Penetrated by Slug. 08815_ B-99 Colossus activates siege mode. 08815_ Penetrated by Slug. 08816_ Slug penetrates B-99 Colossus. 08816_ Penetrated by Slug. Map ----- +----------------------------------------------------+ | ????????? #?????????????????????? | | ????????? #?????????????????????? | | ????????? #?????????????????????? | | ?????????]== ^ #?????????????????????? | | ?????????]== #?????????????????????? | | ?????????]== +?????????????????????? | | ????????? %%#?????????????????????? | | ??????????#######+#+### #?????????????????????? | | ?????????????? ??# #?????????????????????? | | ?????????????? ??# % #?????????????????????? | | ????????????? " ?#h #?????????????????????? | | ????????????"" """ ?# h #?????????????????????? | | ????????????" """ # #?????????????????????? | | ??????????????? " # h#?????????????????????? | | ??????????????????? ; %#?????????????????????? | | ??????????????????????#%% #####?????????????????? | | ???????????????????#### # # ??????????????????? | | ???????????????????# #??????????????????? | | ???????????????????# h #??????????????????? | | ???????????????????# #??????????????????? | | ???????????????????# #??????????????????? | | ???????????????????#% B h BB #??????????????????? | | ???????????????????#% pp|BB #??????????????????? | | ???????????????????#% =%%%!% #??????????????????? | | ???????????????????#"""""%!%""#??????????????????? | | ????????????????????????"@"%"????????????????????? | | ????????????????????????"""""????????????????????? | | ?????????????????????????????????????????????????? | | ?????????????????????????????????????????????????? | | ?????????????????????????????????????????????????? | | ?????????????????????????????????????????????????? | | ?????????????????????????????????????????????????? | | ?????????????????????????